[Event "Titled Tuesday Blitz April 26 Early 2022"]
[White "Fernandez Hernandez, Gerardo"]
[Black "Jarocka, Liwia"]
[WhiteFideId "2207400"]
[BlackFideId "21807558"]
[WhiteElo "2196"]
[BlackElo "1896"]
[Result "0-1"]
[Round "04"]
[TimeControl "180+1"]
[Date "2022.04.26"]
[WhiteClock "0:00:06"]
[BlackClock "0:00:21"]

1. e4 {[%clk 0:03:00]}  c5 {[%clk 0:02:59]} 2. d3 {[%clk 0:02:58]}  Nc6 {[%clk 0:02:59]} 3. g3 {[%clk 0:02:59]}  g6 {[%clk 0:02:58]} 4. Bg2 {[%clk 0:02:59]}  Bg7 {[%clk 0:02:58]} 5. f4 {[%clk 0:03:00]}  d6 {[%clk 0:02:58]} 6. Nf3 {[%clk 0:03:00]}  Nh6 {[%clk 0:02:58]} 7. O-O {[%clk 0:03:00]}  O-O {[%clk 0:02:59]} 8. Nc3 {[%clk 0:02:53]}  f5 {[%clk 0:02:58]} 9. h3 {[%clk 0:02:42]}  Bd7 {[%clk 0:02:55]} 10. Ng5 {[%clk 0:02:40]}  e6 {[%clk 0:02:45]} 11. Be3 {[%clk 0:02:32]}  Nf7 {[%clk 0:02:44]} 12. Nxf7 {[%clk 0:02:12]}  Rxf7 {[%clk 0:01:41]} 13. Qd2 {[%clk 0:02:09]}  Rc8 {[%clk 0:01:39]} 14. Rae1 {[%clk 0:02:06]}  Nd4 {[%clk 0:01:36]} 15. Nd1 {[%clk 0:02:01]}  b5 {[%clk 0:01:30]} 16. c3 {[%clk 0:01:57]}  Nc6 {[%clk 0:01:30]} 17. Nf2 {[%clk 0:01:41]}  Qa5 {[%clk 0:01:29]} 18. a3 {[%clk 0:01:31]}  b4 {[%clk 0:01:28]} 19. axb4 {[%clk 0:01:32]}  cxb4 {[%clk 0:01:27]} 20. d4 {[%clk 0:01:18]}  bxc3 {[%clk 0:01:14]} 21. bxc3 {[%clk 0:01:18]}  Ne7 {[%clk 0:01:13]} 22. Ra1 {[%clk 0:01:10]}  Qxc3 {[%clk 0:01:10]} 23. Rxa7 {[%clk 0:00:55]}  Qxd2 {[%clk 0:01:04]} 24. Bxd2 {[%clk 0:00:54]}  Nc6 {[%clk 0:01:05]} 25. Rb7 {[%clk 0:00:42]}  Bxd4 {[%clk 0:01:00]} 26. exf5 {[%clk 0:00:36]}  gxf5 {[%clk 0:00:59]} 27. Kh2 {[%clk 0:00:37]}  Nd8 {[%clk 0:00:55]} 28. Rbb1 {[%clk 0:00:33]}  Rg7 {[%clk 0:00:47]} 29. Nd3 {[%clk 0:00:32]}  Nf7 {[%clk 0:00:41]} 30. Bb4 {[%clk 0:00:30]}  d5 {[%clk 0:00:39]} 31. Rfc1 {[%clk 0:00:20]}  Rxc1 {[%clk 0:00:38]} 32. Rxc1 {[%clk 0:00:20]}  Bb5 {[%clk 0:00:38]} 33. Nc5 {[%clk 0:00:20]}  Bxc5 {[%clk 0:00:37]} 34. Bxc5 {[%clk 0:00:20]}  Bc4 {[%clk 0:00:37]} 35. Bd4 {[%clk 0:00:20]}  Rg6 {[%clk 0:00:36]} 36. h4 {[%clk 0:00:21]}  h5 {[%clk 0:00:37]} 37. Bf3 {[%clk 0:00:20]}  Rh6 {[%clk 0:00:37]} 38. Rb1 {[%clk 0:00:20]}  Kh7 {[%clk 0:00:35]} 39. Rb8 {[%clk 0:00:21]}  Nd6 {[%clk 0:00:31]} 40. Rh8+ {[%clk 0:00:20]}  Kg6 {[%clk 0:00:31]} 41. Rg8+ {[%clk 0:00:20]}  Kf7 {[%clk 0:00:31]} 42. Rg7+ {[%clk 0:00:19]}  Ke8 {[%clk 0:00:31]} 43. Be5 {[%clk 0:00:16]}  Ne4 {[%clk 0:00:31]} 44. Bxe4 {[%clk 0:00:16]}  dxe4 {[%clk 0:00:31]} 45. Rc7 {[%clk 0:00:16]}  Bd5 {[%clk 0:00:31]} 46. Rc8+ {[%clk 0:00:15]}  Kd7 {[%clk 0:00:31]} 47. Rc7+ {[%clk 0:00:16]}  Kd8 {[%clk 0:00:32]} 48. Ra7 {[%clk 0:00:17]}  Rg6 {[%clk 0:00:31]} 49. Kg2 {[%clk 0:00:16]}  e3+ {[%clk 0:00:30]} 50. Kh2 {[%clk 0:00:16]}  e2 {[%clk 0:00:29]} 51. Ra1 {[%clk 0:00:16]}  Bc4 {[%clk 0:00:30]} 52. Re1 {[%clk 0:00:16]}  Kd7 {[%clk 0:00:30]} 53. Kg2 {[%clk 0:00:16]}  Kc6 {[%clk 0:00:30]} 54. Kf2 {[%clk 0:00:17]}  Kd5 {[%clk 0:00:31]} 55. Ra1 {[%clk 0:00:13]}  Rg8 {[%clk 0:00:29]} 56. Ra5+ {[%clk 0:00:12]}  Ke4 {[%clk 0:00:29]} 57. Ra3 {[%clk 0:00:13]}  Rd8 {[%clk 0:00:27]} 58. Ra4 {[%clk 0:00:11]}  Kd3 {[%clk 0:00:26]} 59. Ra3+ {[%clk 0:00:11]}  Kc2 {[%clk 0:00:25]} 60. Rc3+ {[%clk 0:00:10]}  Kd2 {[%clk 0:00:22]} 61. Re3 {[%clk 0:00:09]}  Rd3 {[%clk 0:00:21]} 62. Bc3+ {[%clk 0:00:10]}  Rxc3 {[%clk 0:00:20]} 63. Rxc3 {[%clk 0:00:10]}  Kxc3 {[%clk 0:00:21]} 64. Ke1 {[%clk 0:00:11]}  Kd3 {[%clk 0:00:21]} 65. g4 {[%clk 0:00:06]}  fxg4 {[%clk 0:00:20]} 66. f5 {[%clk 0:00:06]}  exf5 {[%clk 0:00:20]} 67. Kf2 {[%clk 0:00:06]}  Kd2 {[%clk 0:00:21]} 0-1


[Site "https://www.chess.com"]

[Event "Titled Tuesday Blitz April 26 Early 2022"]
[White "Fernandez Siles, Luis"]
[Black "Sirosh, Ilja"]
[WhiteFideId "2209420"]
[BlackFideId "4500458"]
[WhiteElo "2212"]
[BlackElo "2241"]
[Result "1-0"]
[Round "04"]
[TimeControl "180+1"]
[Date "2022.04.26"]
[WhiteClock "0:00:16"]
[BlackClock "0:00:03"]

1. d4 {[%clk 0:03:00]}  d5 {[%clk 0:02:56]} 2. c4 {[%clk 0:03:00]}  e6 {[%clk 0:02:56]} 3. Nc3 {[%clk 0:02:59]}  c5 {[%clk 0:02:56]} 4. e3 {[%clk 0:02:56]}  Nf6 {[%clk 0:02:55]} 5. Nf3 {[%clk 0:02:56]}  Nc6 {[%clk 0:02:56]} 6. a3 {[%clk 0:02:55]}  cxd4 {[%clk 0:02:50]} 7. exd4 {[%clk 0:02:55]}  g6 {[%clk 0:02:51]} 8. Bg5 {[%clk 0:02:46]}  Bg7 {[%clk 0:02:44]} 9. c5 {[%clk 0:02:26]}  h6 {[%clk 0:02:41]} 10. Bh4 {[%clk 0:02:22]}  g5 {[%clk 0:02:40]} 11. Bg3 {[%clk 0:02:22]}  Ne4 {[%clk 0:02:40]} 12. Bb5 {[%clk 0:02:13]}  O-O {[%clk 0:02:40]} 13. Bxc6 {[%clk 0:02:10]}  bxc6 {[%clk 0:02:40]} 14. Nxe4 {[%clk 0:02:03]}  dxe4 {[%clk 0:02:41]} 15. Ne5 {[%clk 0:02:03]}  Ba6 {[%clk 0:02:42]} 16. h4 {[%clk 0:01:48]}  gxh4 {[%clk 0:02:17]} 17. Rxh4 {[%clk 0:01:18]}  f5 {[%clk 0:02:13]} 18. Qd2 {[%clk 0:00:57]}  Qg5 {[%clk 0:02:06]} 19. O-O-O {[%clk 0:00:37]}  Qxd2+ {[%clk 0:02:02]} 20. Rxd2 {[%clk 0:00:36]}  Rac8 {[%clk 0:01:33]} 21. Bf4 {[%clk 0:00:36]}  Rf6 {[%clk 0:01:23]} 22. Rd1 {[%clk 0:00:34]}  h5 {[%clk 0:00:58]} 23. Kd2 {[%clk 0:00:33]}  Bh6 {[%clk 0:00:47]} 24. g3 {[%clk 0:00:30]}  Rb8 {[%clk 0:00:40]} 25. b4 {[%clk 0:00:28]}  Bb5 {[%clk 0:00:27]} 26. Nd7 {[%clk 0:00:26]}  Bxf4+ {[%clk 0:00:24]} 27. gxf4 {[%clk 0:00:27]}  Rbf8 {[%clk 0:00:23]} 28. Nxf8 {[%clk 0:00:25]}  Kxf8 {[%clk 0:00:23]} 29. Rxh5 {[%clk 0:00:25]}  Rg6 {[%clk 0:00:18]} 30. Rdh1 {[%clk 0:00:23]}  Rg2 {[%clk 0:00:05]} 31. Rh8+ {[%clk 0:00:23]}  Kg7 {[%clk 0:00:04]} 32. R1h7+ {[%clk 0:00:24]}  Kf6 {[%clk 0:00:02]} 33. Rf8+ {[%clk 0:00:23]}  Kg6 {[%clk 0:00:02]} 34. Rg8+ {[%clk 0:00:23]}  Kxh7 {[%clk 0:00:03]} 35. Rxg2 {[%clk 0:00:24]}  Bc4 {[%clk 0:00:03]} 36. Ke3 {[%clk 0:00:24]}  a6 {[%clk 0:00:03]} 37. Rg5 {[%clk 0:00:23]}  Bb5 {[%clk 0:00:03]} 38. f3 {[%clk 0:00:23]}  exf3 {[%clk 0:00:02]} 39. Kxf3 {[%clk 0:00:24]}  Bc4 {[%clk 0:00:03]} 40. Kg3 {[%clk 0:00:23]}  Bd5 {[%clk 0:00:03]} 41. Kh4 {[%clk 0:00:23]}  Bc4 {[%clk 0:00:01]} 42. Rg1 {[%clk 0:00:23]}  Bd5 {[%clk 0:00:02]} 43. Ra1 {[%clk 0:00:23]}  Kg7 {[%clk 0:00:02]} 44. a4 {[%clk 0:00:23]}  Bc4 {[%clk 0:00:03]} 45. Kg5 {[%clk 0:00:22]}  Bb3 {[%clk 0:00:03]} 46. b5 {[%clk 0:00:20]}  cxb5 {[%clk 0:00:03]} 47. axb5 {[%clk 0:00:20]}  axb5 {[%clk 0:00:03]} 48. Ra7+ {[%clk 0:00:20]}  Kf8 {[%clk 0:00:04]} 49. Kf6 {[%clk 0:00:18]}  Ke8 {[%clk 0:00:04]} 50. c6 {[%clk 0:00:19]}  Bd5 {[%clk 0:00:04]} 51. Ke5 {[%clk 0:00:19]}  Bxc6 {[%clk 0:00:02]} 52. Kxe6 {[%clk 0:00:19]}  Kf8 {[%clk 0:00:02]} 53. Rc7 {[%clk 0:00:19]}  Be4 {[%clk 0:00:01]} 54. Rc8+ {[%clk 0:00:18]}  Kg7 {[%clk 0:00:01]} 55. Rb8 {[%clk 0:00:19]}  Bd3 {[%clk 0:00:01]} 56. d5 {[%clk 0:00:20]}  Bc4 {[%clk 0:00:02]} 57. Ke5 {[%clk 0:00:19]}  Kf7 {[%clk 0:00:02]} 58. d6 {[%clk 0:00:20]}  Bd3 {[%clk 0:00:01]} 59. Rb7+ {[%clk 0:00:20]}  Ke8 {[%clk 0:00:01]} 60. Rc7 {[%clk 0:00:19]}  Bc4 {[%clk 0:00:02]} 61. Rc8+ {[%clk 0:00:17]}  Kd7 {[%clk 0:00:03]} 62. Rc7+ {[%clk 0:00:17]}  Kd8 {[%clk 0:00:03]} 63. Kxf5 {[%clk 0:00:15]}  Bd5 {[%clk 0:00:02]} 64. Ke5 {[%clk 0:00:15]}  Ba2 {[%clk 0:00:02]} 65. f5 {[%clk 0:00:15]}  b4 {[%clk 0:00:03]} 66. Rb7 {[%clk 0:00:15]}  b3 {[%clk 0:00:03]} 67. f6 {[%clk 0:00:15]}  Ke8 {[%clk 0:00:03]} 68. f7+ {[%clk 0:00:15]}  Kf8 {[%clk 0:00:04]} 69. Kf6 {[%clk 0:00:15]}  b2 {[%clk 0:00:03]} 70. Rb8# {[%clk 0:00:16]} 1-0


[Site "https://www.chess.com"]

[Event "Titled Tuesday Blitz April 26 Early 2022"]
[White "Gatterer, Florian"]
[Black "Akrakan"]
[WhiteFideId "811688"]
[WhiteElo "2218"]
[BlackElo "2040"]
[Result "0-1"]
[Round "04"]
[TimeControl "180+1"]
[Date "2022.04.26"]
[WhiteClock "0:00:01"]
[BlackClock "0:00:19"]

1. f4 {[%clk 0:03:00]}  c5 {[%clk 0:02:58]} 2. Nf3 {[%clk 0:03:00]}  Nc6 {[%clk 0:02:59]} 3. g3 {[%clk 0:02:59]}  d5 {[%clk 0:02:59]} 4. Bg2 {[%clk 0:03:00]}  Nf6 {[%clk 0:03:00]} 5. O-O {[%clk 0:02:58]}  e6 {[%clk 0:03:00]} 6. d3 {[%clk 0:02:50]}  Be7 {[%clk 0:03:00]} 7. Qe1 {[%clk 0:02:49]}  b5 {[%clk 0:02:57]} 8. e4 {[%clk 0:02:49]}  Bb7 {[%clk 0:02:56]} 9. Nc3 {[%clk 0:02:44]}  b4 {[%clk 0:02:55]} 10. Ne2 {[%clk 0:02:41]}  O-O {[%clk 0:02:54]} 11. e5 {[%clk 0:02:40]}  Nd7 {[%clk 0:02:53]} 12. Be3 {[%clk 0:02:38]}  f6 {[%clk 0:02:52]} 13. exf6 {[%clk 0:02:34]}  Bxf6 {[%clk 0:02:52]} 14. d4 {[%clk 0:02:33]}  Qb6 {[%clk 0:02:43]} 15. dxc5 {[%clk 0:02:26]}  Nxc5 {[%clk 0:02:38]} 16. Qf2 {[%clk 0:02:26]}  Be7 {[%clk 0:02:22]} 17. Nfd4 {[%clk 0:02:18]}  Nxd4 {[%clk 0:02:15]} 18. Bxd4 {[%clk 0:02:10]}  Qc6 {[%clk 0:02:05]} 19. Qe3 {[%clk 0:02:02]}  Ne4 {[%clk 0:01:51]} 20. Bxe4 {[%clk 0:01:53]}  dxe4 {[%clk 0:01:51]} 21. c3 {[%clk 0:01:45]}  a5 {[%clk 0:01:46]} 22. Rfe1 {[%clk 0:01:44]}  Rfd8 {[%clk 0:01:38]} 23. Rac1 {[%clk 0:01:43]}  b3 {[%clk 0:01:15]} 24. a3 {[%clk 0:01:26]}  a4 {[%clk 0:01:09]} 25. g4 {[%clk 0:01:25]}  Ba6 {[%clk 0:01:04]} 26. Ng3 {[%clk 0:01:22]}  Bd3 {[%clk 0:01:02]} 27. Nxe4 {[%clk 0:01:22]}  Bxe4 {[%clk 0:00:57]} 28. Qxe4 {[%clk 0:01:22]}  Qxe4 {[%clk 0:00:55]} 29. Rxe4 {[%clk 0:01:21]}  Kf7 {[%clk 0:00:55]} 30. Rce1 {[%clk 0:01:17]}  Ra6 {[%clk 0:00:54]} 31. R1e2 {[%clk 0:01:10]}  g6 {[%clk 0:00:51]} 32. Kg2 {[%clk 0:01:09]}  Rd7 {[%clk 0:00:49]} 33. h3 {[%clk 0:00:59]}  Bd8 {[%clk 0:00:47]} 34. Kf3 {[%clk 0:00:56]}  Bc7 {[%clk 0:00:47]} 35. Be5 {[%clk 0:00:53]}  Bb6 {[%clk 0:00:46]} 36. Kg2 {[%clk 0:00:38]}  Rd3 {[%clk 0:00:43]} 37. f5 {[%clk 0:00:32]}  gxf5 {[%clk 0:00:37]} 38. gxf5 {[%clk 0:00:31]}  exf5 {[%clk 0:00:37]} 39. Rh4 {[%clk 0:00:30]}  Kg6 {[%clk 0:00:36]} 40. Bf4 {[%clk 0:00:30]}  h5 {[%clk 0:00:35]} 41. Re6+ {[%clk 0:00:28]}  Kf7 {[%clk 0:00:34]} 42. Rc6 {[%clk 0:00:25]}  Bd8 {[%clk 0:00:24]} 43. Rxa6 {[%clk 0:00:17]}  Bxh4 {[%clk 0:00:24]} 44. Ra7+ {[%clk 0:00:15]}  Ke6 {[%clk 0:00:24]} 45. Ra6+ {[%clk 0:00:13]}  Kd5 {[%clk 0:00:22]} 46. Ra5+ {[%clk 0:00:10]}  Ke6 {[%clk 0:00:22]} 47. Ra6+ {[%clk 0:00:09]}  Kd7 {[%clk 0:00:23]} 48. Rxa4 {[%clk 0:00:04]}  Rd1 {[%clk 0:00:22]} 49. Kf3 {[%clk 0:00:04]}  Rf1+ {[%clk 0:00:21]} 50. Ke3 {[%clk 0:00:03]}  Rb1 {[%clk 0:00:22]} 51. Rb4 {[%clk 0:00:03]}  Rxb2 {[%clk 0:00:22]} 52. Kd3 {[%clk 0:00:03]}  Bf2 {[%clk 0:00:21]} 53. Bd2 {[%clk 0:00:03]}  Bc5 {[%clk 0:00:20]} 54. Rb5 {[%clk 0:00:02]}  Kc6 {[%clk 0:00:20]} 55. a4 {[%clk 0:00:03]}  Rb1 {[%clk 0:00:19]} 56. Bh6 {[%clk 0:00:01]}  Rd1+ {[%clk 0:00:19]} 0-1


[Site "https://www.chess.com"]

[Event "Titled Tuesday Blitz April 26 Early 2022"]
[White "Guliev, Logman"]
[Black "Samunenkov, Ihor"]
[WhiteFideId "13400061"]
[BlackFideId "14187086"]
[WhiteElo "2128"]
[BlackElo "2409"]
[Result "1-0"]
[Round "04"]
[TimeControl "180+1"]
[Date "2022.04.26"]
[WhiteClock "0:00:48"]
[BlackClock "0:00:01"]

1. e4 {[%clk 0:03:00]}  c5 {[%clk 0:02:56]} 2. Nf3 {[%clk 0:03:00]}  Nc6 {[%clk 0:02:56]} 3. Bb5 {[%clk 0:02:58]}  g6 {[%clk 0:02:56]} 4. Bxc6 {[%clk 0:02:58]}  dxc6 {[%clk 0:02:57]} 5. O-O {[%clk 0:02:57]}  Bg7 {[%clk 0:02:57]} 6. d3 {[%clk 0:02:56]}  Bg4 {[%clk 0:02:51]} 7. h3 {[%clk 0:02:55]}  Bxf3 {[%clk 0:02:50]} 8. Qxf3 {[%clk 0:02:56]}  Nf6 {[%clk 0:02:51]} 9. Nc3 {[%clk 0:02:50]}  Nd7 {[%clk 0:02:50]} 10. Qe2 {[%clk 0:02:48]}  Nf8 {[%clk 0:02:48]} 11. f4 {[%clk 0:02:47]}  Ne6 {[%clk 0:02:46]} 12. f5 {[%clk 0:02:45]}  Nd4 {[%clk 0:02:46]} 13. Qf2 {[%clk 0:02:44]}  O-O {[%clk 0:02:35]} 14. Kh1 {[%clk 0:02:43]}  Qd6 {[%clk 0:02:14]} 15. Bf4 {[%clk 0:02:25]}  Be5 {[%clk 0:02:10]} 16. Bh6 {[%clk 0:02:14]}  Bg7 {[%clk 0:02:07]} 17. Bxg7 {[%clk 0:02:11]}  Kxg7 {[%clk 0:02:08]} 18. Rae1 {[%clk 0:02:11]}  f6 {[%clk 0:01:55]} 19. fxg6 {[%clk 0:01:41]}  hxg6 {[%clk 0:01:53]} 20. Re3 {[%clk 0:01:41]}  e5 {[%clk 0:01:33]} 21. Rg3 {[%clk 0:01:37]}  Rh8 {[%clk 0:01:27]} 22. Nd1 {[%clk 0:01:35]}  Raf8 {[%clk 0:01:17]} 23. Ne3 {[%clk 0:01:34]}  Rh5 {[%clk 0:00:52]} 24. c3 {[%clk 0:01:32]}  Ne6 {[%clk 0:00:51]} 25. Nf5+ {[%clk 0:01:26]}  Rxf5 {[%clk 0:00:52]} 26. exf5 {[%clk 0:01:26]}  Nf4 {[%clk 0:00:48]} 27. fxg6 {[%clk 0:01:24]}  Rh8 {[%clk 0:00:45]} 28. d4 {[%clk 0:01:21]}  cxd4 {[%clk 0:00:43]} 29. cxd4 {[%clk 0:01:21]}  Qd5 {[%clk 0:00:36]} 30. dxe5 {[%clk 0:01:09]}  fxe5 {[%clk 0:00:34]} 31. Qf3 {[%clk 0:01:04]}  Qxa2 {[%clk 0:00:34]} 32. Qc3 {[%clk 0:00:51]}  Ne6 {[%clk 0:00:05]} 33. Qxe5+ {[%clk 0:00:49]}  Kg8 {[%clk 0:00:01]} 34. g7 {[%clk 0:00:48]} 1-0


[Site "https://www.chess.com"]

[Event "Titled Tuesday Blitz April 26 Early 2022"]
[White "Gutierrez Olivares, Daniel"]
[Black "Sovetbekova, Nurai"]
[WhiteFideId "2264005"]
[BlackFideId "13801910"]
[WhiteElo "2317"]
[BlackElo "1538"]
[Result "1-0"]
[Round "04"]
[TimeControl "180+1"]
[Date "2022.04.26"]
[WhiteClock "0:00:48"]
[BlackClock "0:00:01"]

1. Nf3 {[%clk 0:03:00]}  Nf6 {[%clk 0:02:59]} 2. g3 {[%clk 0:03:00]}  g6 {[%clk 0:02:59]} 3. c4 {[%clk 0:03:00]}  Bg7 {[%clk 0:02:58]} 4. Bg2 {[%clk 0:03:01]}  O-O {[%clk 0:02:58]} 5. O-O {[%clk 0:03:02]}  d5 {[%clk 0:02:56]} 6. Nc3 {[%clk 0:03:03]}  c5 {[%clk 0:02:45]} 7. d3 {[%clk 0:02:53]}  Nc6 {[%clk 0:02:41]} 8. Bf4 {[%clk 0:02:48]}  d4 {[%clk 0:02:36]} 9. Na4 {[%clk 0:02:42]}  Nh5 {[%clk 0:02:24]} 10. Bd2 {[%clk 0:02:31]}  Qd6 {[%clk 0:02:21]} 11. a3 {[%clk 0:02:26]}  b6 {[%clk 0:02:03]} 12. b4 {[%clk 0:02:11]}  Bb7 {[%clk 0:02:02]} 13. Ng5 {[%clk 0:02:04]}  Nf6 {[%clk 0:01:39]} 14. bxc5 {[%clk 0:01:45]}  bxc5 {[%clk 0:01:38]} 15. Rb1 {[%clk 0:01:45]}  Rab8 {[%clk 0:01:33]} 16. Rb5 {[%clk 0:01:28]}  h6 {[%clk 0:01:12]} 17. Nxc5 {[%clk 0:01:13]}  hxg5 {[%clk 0:00:51]} 18. Nxb7 {[%clk 0:01:10]}  Qc7 {[%clk 0:00:40]} 19. Qb3 {[%clk 0:01:10]}  g4 {[%clk 0:00:26]} 20. Rb1 {[%clk 0:01:06]}  Nd7 {[%clk 0:00:25]} 21. Qa4 {[%clk 0:00:51]}  Nb6 {[%clk 0:00:14]} 22. Rxb6 {[%clk 0:00:51]}  axb6 {[%clk 0:00:14]} 23. Qxc6 {[%clk 0:00:52]}  Qxc6 {[%clk 0:00:08]} 24. Bxc6 {[%clk 0:00:52]}  Rfc8 {[%clk 0:00:09]} 25. Bg2 {[%clk 0:00:53]}  Rc7 {[%clk 0:00:06]} 26. Rxb6 {[%clk 0:00:53]}  e6 {[%clk 0:00:04]} 27. Bb4 {[%clk 0:00:51]}  Bf6 {[%clk 0:00:04]} 28. a4 {[%clk 0:00:50]}  Bd8 {[%clk 0:00:03]} 29. Bd6 {[%clk 0:00:47]}  Rbxb7 {[%clk 0:00:01]} 30. Rxb7 {[%clk 0:00:48]}  Rxb7 {[%clk 0:00:01]} 31. Bxb7 {[%clk 0:00:48]} 1-0


[Site "https://www.chess.com"]

[Event "Titled Tuesday Blitz April 26 Early 2022"]
[White "Halvax, Georg"]
[Black "Rengifo Blancas, Renzo Jhonathan"]
[WhiteFideId "1619543"]
[BlackFideId "3807185"]
[WhiteElo "2403"]
[BlackElo "2058"]
[Result "1-0"]
[Round "04"]
[TimeControl "180+1"]
[Date "2022.04.26"]
[WhiteClock "0:00:46"]
[BlackClock "0:00:24"]

1. d4 {[%clk 0:03:00]}  Nf6 {[%clk 0:02:59]} 2. c4 {[%clk 0:03:01]}  e6 {[%clk 0:02:53]} 3. Nf3 {[%clk 0:03:00]}  d5 {[%clk 0:02:54]} 4. e3 {[%clk 0:03:00]}  Bb4+ {[%clk 0:02:54]} 5. Bd2 {[%clk 0:03:00]}  Be7 {[%clk 0:02:52]} 6. a3 {[%clk 0:02:51]}  O-O {[%clk 0:02:52]} 7. Be2 {[%clk 0:02:47]}  c5 {[%clk 0:02:51]} 8. dxc5 {[%clk 0:02:47]}  Bxc5 {[%clk 0:02:49]} 9. b4 {[%clk 0:02:48]}  Be7 {[%clk 0:02:49]} 10. Bc3 {[%clk 0:02:48]}  Ne4 {[%clk 0:02:47]} 11. Bb2 {[%clk 0:02:47]}  Bf6 {[%clk 0:02:47]} 12. Bxf6 {[%clk 0:02:43]}  Qxf6 {[%clk 0:02:47]} 13. Qd4 {[%clk 0:02:44]}  Nc6 {[%clk 0:02:44]} 14. Qxf6 {[%clk 0:02:43]}  Nxf6 {[%clk 0:02:45]} 15. cxd5 {[%clk 0:02:44]}  Nxd5 {[%clk 0:02:38]} 16. Nbd2 {[%clk 0:02:43]}  Nc3 {[%clk 0:02:34]} 17. Rc1 {[%clk 0:02:41]}  Nxe2 {[%clk 0:02:30]} 18. Kxe2 {[%clk 0:02:42]}  a6 {[%clk 0:02:23]} 19. Nc4 {[%clk 0:02:42]}  Bd7 {[%clk 0:02:17]} 20. Rhd1 {[%clk 0:02:29]}  Rad8 {[%clk 0:02:17]} 21. Nb6 {[%clk 0:02:25]}  Bc8 {[%clk 0:02:16]} 22. Rxd8 {[%clk 0:02:20]}  Rxd8 {[%clk 0:02:16]} 23. Nd4 {[%clk 0:02:19]}  g6 {[%clk 0:01:40]} 24. Nxc6 {[%clk 0:02:16]}  bxc6 {[%clk 0:01:40]} 25. Rxc6 {[%clk 0:01:59]}  Bb7 {[%clk 0:01:38]} 26. Rc7 {[%clk 0:01:54]}  Bxg2 {[%clk 0:01:38]} 27. f3 {[%clk 0:01:54]}  e5 {[%clk 0:01:22]} 28. Rc8 {[%clk 0:01:51]}  Rxc8 {[%clk 0:01:22]} 29. Nxc8 {[%clk 0:01:52]}  Kf8 {[%clk 0:01:13]} 30. a4 {[%clk 0:01:52]}  Bh3 {[%clk 0:01:09]} 31. Nd6 {[%clk 0:01:47]}  Ke7 {[%clk 0:01:08]} 32. Nc4 {[%clk 0:01:48]}  f6 {[%clk 0:01:04]} 33. Kd3 {[%clk 0:01:43]}  Bd7 {[%clk 0:01:02]} 34. Nb6 {[%clk 0:01:41]}  Bc6 {[%clk 0:01:01]} 35. e4 {[%clk 0:01:41]}  Kd6 {[%clk 0:00:58]} 36. Kc4 {[%clk 0:01:41]}  f5 {[%clk 0:00:58]} 37. b5 {[%clk 0:01:41]}  axb5+ {[%clk 0:00:57]} 38. axb5 {[%clk 0:01:42]}  Bb7 {[%clk 0:00:56]} 39. Nd5 {[%clk 0:01:40]}  g5 {[%clk 0:00:44]} 40. Nf6 {[%clk 0:01:36]}  fxe4 {[%clk 0:00:32]} 41. fxe4 {[%clk 0:00:53]}  h5 {[%clk 0:00:31]} 42. Nxh5 {[%clk 0:00:48]}  Bxe4 {[%clk 0:00:30]} 43. Nf6 {[%clk 0:00:47]}  Bg2 {[%clk 0:00:28]} 44. Nh7 {[%clk 0:00:46]}  Bf1+ {[%clk 0:00:28]} 45. Kb4 {[%clk 0:00:46]}  g4 {[%clk 0:00:26]} 46. Nf6 {[%clk 0:00:46]}  Be2 {[%clk 0:00:25]} 47. b6 {[%clk 0:00:45]}  Kc6 {[%clk 0:00:24]} 48. Ka5 {[%clk 0:00:44]}  Bf3 {[%clk 0:00:17]} 49. Ka6 {[%clk 0:00:44]}  Kc5 {[%clk 0:00:13]} 50. b7 {[%clk 0:00:43]}  Bxb7+ {[%clk 0:00:13]} 51. Kxb7 {[%clk 0:00:44]}  Kd4 {[%clk 0:00:13]} 52. Nxg4 {[%clk 0:00:44]}  e4 {[%clk 0:00:12]} 53. h4 {[%clk 0:00:44]}  e3 {[%clk 0:00:11]} 54. Nxe3 {[%clk 0:00:43]}  Ke4 {[%clk 0:00:11]} 55. Ng2 {[%clk 0:00:42]}  Ke5 {[%clk 0:00:12]} 56. Kc6 {[%clk 0:00:42]}  Kf5 {[%clk 0:00:12]} 57. Kd5 {[%clk 0:00:43]}  Kg4 {[%clk 0:00:13]} 58. Ke4 {[%clk 0:00:43]}  Kh5 {[%clk 0:00:14]} 59. Kf5 {[%clk 0:00:43]}  Kh6 {[%clk 0:00:15]} 60. Kg4 {[%clk 0:00:44]}  Kg6 {[%clk 0:00:15]} 61. h5+ {[%clk 0:00:44]}  Kh6 {[%clk 0:00:16]} 62. Kh4 {[%clk 0:00:45]}  Kh7 {[%clk 0:00:17]} 63. Kg5 {[%clk 0:00:45]}  Kg7 {[%clk 0:00:18]} 64. h6+ {[%clk 0:00:46]}  Kh7 {[%clk 0:00:19]} 65. Kh5 {[%clk 0:00:47]}  Kh8 {[%clk 0:00:19]} 66. Kg6 {[%clk 0:00:47]}  Kg8 {[%clk 0:00:20]} 67. Ne3 {[%clk 0:00:47]}  Kh8 {[%clk 0:00:21]} 68. Ng4 {[%clk 0:00:45]}  Kg8 {[%clk 0:00:22]} 69. Ne5 {[%clk 0:00:45]}  Kh8 {[%clk 0:00:23]} 70. Nf7+ {[%clk 0:00:46]}  Kg8 {[%clk 0:00:23]} 71. h7+ {[%clk 0:00:46]}  Kf8 {[%clk 0:00:24]} 72. h8=Q+ {[%clk 0:00:46]} 1-0


[Site "https://www.chess.com"]

[Event "Titled Tuesday Blitz April 26 Early 2022"]
[White "Haukenfrers, Dale"]
[Black "Tatarinov, Dmitry"]
[WhiteFideId "2603780"]
[BlackFideId "24160067"]
[WhiteElo "2051"]
[BlackElo "2302"]
[Result "0-1"]
[Round "04"]
[TimeControl "180+1"]
[Date "2022.04.26"]
[WhiteClock "0:00:03"]
[BlackClock "0:01:33"]

1. f3 {[%clk 0:03:00]}  d5 {[%clk 0:02:59]} 2. c3 {[%clk 0:03:01]}  c5 {[%clk 0:02:59]} 3. e4 {[%clk 0:03:01]}  d4 {[%clk 0:02:59]} 4. Be2 {[%clk 0:03:00]}  d3 {[%clk 0:02:57]} 5. Bf1 {[%clk 0:03:00]}  Nc6 {[%clk 0:02:57]} 6. a3 {[%clk 0:02:53]}  e5 {[%clk 0:02:56]} 7. b4 {[%clk 0:02:52]}  c4 {[%clk 0:02:56]} 8. g3 {[%clk 0:02:46]}  h5 {[%clk 0:02:56]} 9. a4 {[%clk 0:02:43]}  Nf6 {[%clk 0:02:46]} 10. Na3 {[%clk 0:02:42]}  Be6 {[%clk 0:02:45]} 11. Nh3 {[%clk 0:02:40]}  Nxe4 {[%clk 0:02:35]} 12. fxe4 {[%clk 0:02:37]}  Bg4 {[%clk 0:02:35]} 13. Nxc4 {[%clk 0:02:28]}  Bxd1 {[%clk 0:02:35]} 14. Kxd1 {[%clk 0:02:27]}  Rc8 {[%clk 0:02:35]} 15. b5 {[%clk 0:02:20]}  Na5 {[%clk 0:02:32]} 16. Nxe5 {[%clk 0:02:20]}  Qf6 {[%clk 0:02:25]} 17. Bxd3 {[%clk 0:02:04]}  Qxe5 {[%clk 0:02:24]} 18. Rf1 {[%clk 0:01:57]}  Nb3 {[%clk 0:02:15]} 19. Rb1 {[%clk 0:01:50]}  Nxc1 {[%clk 0:02:15]} 20. Rxc1 {[%clk 0:01:48]}  g6 {[%clk 0:02:11]} 21. Nf4 {[%clk 0:01:33]}  Bh6 {[%clk 0:02:04]} 22. Nd5 {[%clk 0:01:33]}  O-O {[%clk 0:02:04]} 23. c4 {[%clk 0:01:26]}  Rfd8 {[%clk 0:02:04]} 24. Rc3 {[%clk 0:01:16]}  Kg7 {[%clk 0:02:04]} 25. Rf3 {[%clk 0:01:09]}  Qd4 {[%clk 0:01:57]} 26. Kc2 {[%clk 0:01:00]}  a6 {[%clk 0:01:53]} 27. b6 {[%clk 0:00:55]}  Rxd5 {[%clk 0:01:52]} 28. exd5 {[%clk 0:00:51]}  Qxb6 {[%clk 0:01:53]} 29. Rb3 {[%clk 0:00:39]}  Qc7 {[%clk 0:01:48]} 30. a5 {[%clk 0:00:35]}  Bg5 {[%clk 0:01:48]} 31. Rb6 {[%clk 0:00:22]}  Be7 {[%clk 0:01:39]} 32. Kc3 {[%clk 0:00:19]}  Bc5 {[%clk 0:01:37]} 33. Rbf6 {[%clk 0:00:19]}  Qxa5+ {[%clk 0:01:38]} 34. Kc2 {[%clk 0:00:18]}  Qa2+ {[%clk 0:01:37]} 35. Kc3 {[%clk 0:00:14]}  Qa1+ {[%clk 0:01:37]} 36. Kb3 {[%clk 0:00:13]}  Qxf6 {[%clk 0:01:37]} 37. Rxf6 {[%clk 0:00:10]}  Kxf6 {[%clk 0:01:38]} 38. h3 {[%clk 0:00:08]}  Ke5 {[%clk 0:01:38]} 39. g4 {[%clk 0:00:08]}  Kd4 {[%clk 0:01:37]} 40. Bxg6 {[%clk 0:00:05]}  fxg6 {[%clk 0:01:37]} 41. g5 {[%clk 0:00:05]}  h4 {[%clk 0:01:37]} 42. Ka4 {[%clk 0:00:03]}  Kxc4 {[%clk 0:01:34]} 43. d6 {[%clk 0:00:03]}  b5+ {[%clk 0:01:33]} 0-1


[Site "https://www.chess.com"]